[Event "Late-Titled-Tuesday-Blitz-October-10-2023"]
[Site "Chess.com"]
[Date "2023.10.10"]
[Round "7"]
[White "IPAchess"]
[Black "Joshukid"]
[Result "0-1"]
[WhiteElo "2383"]
[BlackElo "2572"]
[TimeControl "180+1"]
[EndTime "15:09:48 PDT"]
[Termination "Joshukid won by resignation"]

1. d4 {[%clk 0:03:00.9]} 1... Nf6 {[%clk 0:02:57.5]} 2. c4 {[%clk 0:03:01.4]}
2... e6 {[%clk 0:02:57.9]} 3. Nf3 {[%clk 0:03:01.9]} 3... b6 {[%clk 0:02:57.7]}
4. a3 {[%clk 0:03:01.5]} 4... Bb7 {[%clk 0:02:58.6]} 5. Nc3 {[%clk 0:03:00.6]}
5... Be7 {[%clk 0:02:57.7]} 6. Qc2 {[%clk 0:02:43]} 6... d5 {[%clk 0:02:57]} 7.
cxd5 {[%clk 0:02:42.2]} 7... exd5 {[%clk 0:02:55.5]} 8. Bg5 {[%clk 0:02:02.3]}
8... Nbd7 {[%clk 0:02:53.1]} 9. e3 {[%clk 0:01:56.6]} 9... h6 {[%clk 0:02:52.1]}
10. Bh4 {[%clk 0:01:56.4]} 10... O-O {[%clk 0:02:52.2]} 11. Bd3 {[%clk
0:01:56.1]} 11... c5 {[%clk 0:02:51.9]} 12. O-O {[%clk 0:01:55.4]} 12... Re8
{[%clk 0:02:48.6]} 13. Rac1 {[%clk 0:01:54]} 13... Ne4 {[%clk 0:02:48.8]} 14.
Bxe7 {[%clk 0:01:46]} 14... Qxe7 {[%clk 0:02:49.7]} 15. Nd2 {[%clk 0:01:45.1]}
15... Rac8 {[%clk 0:02:44]} 16. Bb5 {[%clk 0:01:27.2]} 16... cxd4 {[%clk
0:02:36.5]} 17. exd4 {[%clk 0:01:24.6]} 17... Nxc3 {[%clk 0:02:34.4]} 18. bxc3
{[%clk 0:01:22.6]} 18... a6 {[%clk 0:02:34.2]} 19. Bxd7 {[%clk 0:01:21.4]} 19...
Qxd7 {[%clk 0:02:35.1]} 20. Nf3 {[%clk 0:01:19.6]} 20... b5 {[%clk 0:02:30.5]}
21. Ne5 {[%clk 0:01:14.2]} 21... Qd6 {[%clk 0:02:30.2]} 22. Qb3 {[%clk
0:01:11.8]} 22... Rc7 {[%clk 0:02:25]} 23. Nd3 {[%clk 0:01:11.9]} 23... Rec8
{[%clk 0:02:24.4]} 24. Nc5 {[%clk 0:01:12.1]} 24... Rxc5 {[%clk 0:02:25]} 25.
dxc5 {[%clk 0:01:13]} 25... Qxc5 {[%clk 0:02:25.7]} 26. Rfd1 {[%clk 0:01:10.4]}
26... d4 {[%clk 0:02:25.8]} 27. h3 {[%clk 0:00:55.1]} 27... dxc3 {[%clk
0:02:24.1]} 28. Rd7 {[%clk 0:00:51.4]} 28... Qg5 {[%clk 0:02:16.9]} 29. Qxf7+
{[%clk 0:00:31.3]} 29... Kh8 {[%clk 0:02:15.2]} 30. g3 {[%clk 0:00:13.4]} 0-1

[Event "Late-Titled-Tuesday-Blitz-October-10-2023"]
[Site "Chess.com"]
[Date "2023.10.10"]
[Round "7"]
[White "arturdailima"]
[Black "familijatop71"]
[Result "1-0"]
[WhiteElo "2303"]
[BlackElo "2135"]
[TimeControl "180+1"]
[EndTime "15:09:52 PDT"]
[Termination "arturdailima won by resignation"]

1. e4 {[%clk 0:03:00.9]} 1... c5 {[%clk 0:02:52.1]} 2. Nf3 {[%clk 0:03:01.2]}
2... d6 {[%clk 0:02:51.8]} 3. Bc4 {[%clk 0:02:58.8]} 3... e6 {[%clk 0:02:51]} 4.
O-O {[%clk 0:02:58.6]} 4... Nf6 {[%clk 0:02:48.9]} 5. Re1 {[%clk 0:02:58.2]}
5... Nc6 {[%clk 0:02:47.2]} 6. c3 {[%clk 0:02:55.8]} 6... Be7 {[%clk 0:02:38]}
7. d4 {[%clk 0:02:55.7]} 7... O-O {[%clk 0:02:33.9]} 8. e5 {[%clk 0:02:46.6]}
8... dxe5 {[%clk 0:02:16.8]} 9. dxe5 {[%clk 0:02:47.5]} 9... Qxd1 {[%clk
0:02:05.4]} 10. Rxd1 {[%clk 0:02:48.4]} 10... Nd7 {[%clk 0:01:58.2]} 11. Bf4
{[%clk 0:02:48.7]} 11... a6 {[%clk 0:01:51.2]} 12. a4 {[%clk 0:02:47.8]} 12...
Na5 {[%clk 0:01:48.3]} 13. Bd3 {[%clk 0:02:44.8]} 13... c4 {[%clk 0:01:29.9]}
14. Be4 {[%clk 0:02:42.6]} 14... Nc5 {[%clk 0:01:29.1]} 15. Bc2 {[%clk
0:02:41.5]} 15... Nab3 {[%clk 0:01:26.9]} 16. Ra2 {[%clk 0:02:39.9]} 16... Rd8
{[%clk 0:01:23.7]} 17. Rxd8+ {[%clk 0:02:39.1]} 17... Bxd8 {[%clk 0:01:23.4]}
18. Nbd2 {[%clk 0:02:39.8]} 18... Nxd2 {[%clk 0:01:07.6]} 19. Nxd2 {[%clk
0:02:39.7]} 19... Bd7 {[%clk 0:00:58.4]} 20. Nxc4 {[%clk 0:02:37.9]} 20... Rc8
{[%clk 0:00:58.1]} 21. Nd6 {[%clk 0:02:34]} 21... Rb8 {[%clk 0:00:53]} 22. b4
{[%clk 0:02:28.2]} 22... b6 {[%clk 0:00:20.5]} 23. bxc5 {[%clk 0:02:25.7]} 23...
bxc5 {[%clk 0:00:21.4]} 24. h3 {[%clk 0:02:22.7]} 24... Bc6 {[%clk 0:00:21.2]}
25. Be4 {[%clk 0:02:21.1]} 25... Bxe4 {[%clk 0:00:18.4]} 26. Nxe4 {[%clk
0:02:22]} 26... Bc7 {[%clk 0:00:16.8]} 27. Nxc5 {[%clk 0:02:19.7]} 27... h6
{[%clk 0:00:16.8]} 28. Nxa6 {[%clk 0:02:13.6]} 28... Rc8 {[%clk 0:00:16.5]} 29.
Nxc7 {[%clk 0:02:12.9]} 1-0

[Event "Late-Titled-Tuesday-Blitz-October-10-2023"]
[Site "Chess.com"]
[Date "2023.10.10"]
[Round "7"]
[White "Alphafischer2019"]
[Black "Binary010"]
[Result "0-1"]
[WhiteElo "2582"]
[BlackElo "2836"]
[TimeControl "180+1"]
[EndTime "15:10:18 PDT"]
[Termination "Binary010 won by checkmate"]

1. d4 {[%clk 0:02:55.4]} 1... Nf6 {[%clk 0:02:58.8]} 2. Nc3 {[%clk 0:02:53.4]}
2... d5 {[%clk 0:02:58.7]} 3. Bf4 {[%clk 0:02:52.4]} 3... c5 {[%clk 0:02:58.9]}
4. e3 {[%clk 0:02:52.3]} 4... cxd4 {[%clk 0:02:58.5]} 5. exd4 {[%clk 0:02:53.2]}
5... a6 {[%clk 0:02:58.9]} 6. Nf3 {[%clk 0:02:52.9]} 6... Nc6 {[%clk 0:02:58.6]}
7. Ne5 {[%clk 0:02:49.7]} 7... Bd7 {[%clk 0:02:58.6]} 8. Qd2 {[%clk 0:02:48.3]}
8... e6 {[%clk 0:02:54.8]} 9. f3 {[%clk 0:02:46.9]} 9... Bb4 {[%clk 0:02:43]}
10. g4 {[%clk 0:02:43.4]} 10... Rc8 {[%clk 0:02:37.4]} 11. a3 {[%clk 0:02:41.7]}
11... Bxc3 {[%clk 0:02:32.6]} 12. bxc3 {[%clk 0:02:40.2]} 12... O-O {[%clk
0:02:30.1]} 13. Rb1 {[%clk 0:02:34.6]} 13... b5 {[%clk 0:02:29.2]} 14. Nd3
{[%clk 0:02:33.5]} 14... Re8 {[%clk 0:02:18.7]} 15. Be2 {[%clk 0:02:29.5]} 15...
Na5 {[%clk 0:02:15.6]} 16. Nc5 {[%clk 0:02:27.3]} 16... e5 {[%clk 0:02:12]} 17.
Be3 {[%clk 0:01:56.3]} 17... Nc4 {[%clk 0:01:59]} 18. Bxc4 {[%clk 0:01:55.6]}
18... dxc4 {[%clk 0:01:59.9]} 19. O-O {[%clk 0:01:48.9]} 19... Nd5 {[%clk
0:01:58.1]} 20. Bf2 {[%clk 0:01:45.3]} 20... Bc6 {[%clk 0:01:48.9]} 21. Rfe1
{[%clk 0:01:31.8]} 21... Qf6 {[%clk 0:01:43]} 22. Kg2 {[%clk 0:00:54.3]} 22...
Nf4+ {[%clk 0:01:29.4]} 23. Kg3 {[%clk 0:00:51.5]} 23... Qh6 {[%clk 0:01:23.6]}
24. Be3 {[%clk 0:00:25.2]} 24... Qh3+ {[%clk 0:01:22]} 25. Kf2 {[%clk
0:00:25.9]} 25... Qg2# {[%clk 0:01:21.2]} 0-1

[Event "Late-Titled-Tuesday-Blitz-October-10-2023"]
[Site "Chess.com"]
[Date "2023.10.10"]
[Round "7"]
[White "NovikovaGalina"]
[Black "pinguino120"]
[Result "1-0"]
[WhiteElo "2423"]
[BlackElo "2228"]
[TimeControl "180+1"]
[EndTime "15:10:23 PDT"]
[Termination "NovikovaGalina won by resignation"]

1. e4 {[%clk 0:03:00.9]} 1... c5 {[%clk 0:02:58.4]} 2. Nf3 {[%clk 0:03:01.3]}
2... d6 {[%clk 0:02:58.6]} 3. d4 {[%clk 0:03:01.8]} 3... cxd4 {[%clk 0:02:59.5]}
4. Nxd4 {[%clk 0:03:02.3]} 4... Nf6 {[%clk 0:03:00.2]} 5. Nc3 {[%clk 0:03:02.8]}
5... a6 {[%clk 0:03:00.8]} 6. Rg1 {[%clk 0:03:03.1]} 6... e5 {[%clk 0:02:57.7]}
7. Nb3 {[%clk 0:03:02.8]} 7... h5 {[%clk 0:02:57]} 8. h3 {[%clk 0:03:02.8]} 8...
Be6 {[%clk 0:02:55.6]} 9. g4 {[%clk 0:03:03.1]} 9... hxg4 {[%clk 0:02:56.5]} 10.
hxg4 {[%clk 0:03:04]} 10... d5 {[%clk 0:02:57]} 11. g5 {[%clk 0:03:04.3]} 11...
Nxe4 {[%clk 0:02:54.9]} 12. Nxe4 {[%clk 0:03:05.2]} 12... dxe4 {[%clk
0:02:55.5]} 13. Qxd8+ {[%clk 0:03:05.3]} 13... Kxd8 {[%clk 0:02:56.4]} 14. Bg2
{[%clk 0:03:04.5]} 14... Nc6 {[%clk 0:02:36]} 15. Be3 {[%clk 0:03:03.1]} 15...
Kc7 {[%clk 0:02:35.7]} 16. Bxe4 {[%clk 0:03:02.3]} 16... Rd8 {[%clk 0:02:17.1]}
17. Rd1 {[%clk 0:02:40.1]} 17... Rxd1+ {[%clk 0:02:08.4]} 18. Kxd1 {[%clk
0:02:41]} 18... Be7 {[%clk 0:02:08.7]} 19. Kc1 {[%clk 0:02:39.1]} 19... Rd8
{[%clk 0:02:03.4]} 20. Rh1 {[%clk 0:02:28.3]} 20... Nd4 {[%clk 0:02:01.2]} 21.
Nxd4 {[%clk 0:02:23.9]} 21... exd4 {[%clk 0:02:00.3]} 22. Bf4+ {[%clk
0:02:24.5]} 22... Bd6 {[%clk 0:01:55.8]} 23. Bxd6+ {[%clk 0:02:24.5]} 23... Rxd6
{[%clk 0:01:56.7]} 24. Rh7 {[%clk 0:02:23.6]} 24... Bd5 {[%clk 0:00:37.4]} 25.
Bxd5 {[%clk 0:02:21.3]} 25... Rxd5 {[%clk 0:00:38.3]} 26. Rxg7 {[%clk
0:02:21.3]} 26... Rd7 {[%clk 0:00:38.6]} 27. f4 {[%clk 0:01:59]} 27... Kd6
{[%clk 0:00:37.4]} 28. f5 {[%clk 0:01:51]} 28... Re7 {[%clk 0:00:32.2]} 29. Kd2
{[%clk 0:01:46.5]} 29... Kd5 {[%clk 0:00:11.2]} 30. g6 {[%clk 0:01:44.3]} 1-0

[Event "Late-Titled-Tuesday-Blitz-October-10-2023"]
[Site "Chess.com"]
[Date "2023.10.10"]
[Round "7"]
[White "FM_Kappeler"]
[Black "GoldenShare"]
[Result "0-1"]
[WhiteElo "2319"]
[BlackElo "2533"]
[TimeControl "180+1"]
[EndTime "15:10:25 PDT"]
[Termination "GoldenShare won by resignation"]

1. d4 {[%clk 0:03:00.9]} 1... d5 {[%clk 0:02:59.1]} 2. c4 {[%clk 0:03:00.5]}
2... dxc4 {[%clk 0:03:00]} 3. e3 {[%clk 0:03:00]} 3... Nf6 {[%clk 0:02:59.5]} 4.
Bxc4 {[%clk 0:02:59.2]} 4... e6 {[%clk 0:03:00.4]} 5. Nf3 {[%clk 0:02:58.7]}
5... a6 {[%clk 0:03:01.3]} 6. O-O {[%clk 0:02:57.8]} 6... b5 {[%clk 0:03:01.7]}
7. Bd3 {[%clk 0:02:57.4]} 7... Bb7 {[%clk 0:03:02.6]} 8. Qe2 {[%clk 0:02:50.3]}
8... c5 {[%clk 0:03:01.2]} 9. a4 {[%clk 0:02:38.8]} 9... b4 {[%clk 0:03:00.1]}
10. Nbd2 {[%clk 0:02:30.9]} 10... Nbd7 {[%clk 0:02:57.6]} 11. Nb3 {[%clk
0:02:26.7]} 11... Be7 {[%clk 0:02:56.5]} 12. e4 {[%clk 0:02:16.9]} 12... cxd4
{[%clk 0:02:54.1]} 13. Nfxd4 {[%clk 0:02:15.9]} 13... Ne5 {[%clk 0:02:46.3]} 14.
Rd1 {[%clk 0:01:44.2]} 14... Nxd3 {[%clk 0:02:45.8]} 15. Rxd3 {[%clk 0:01:43.6]}
15... Bxe4 {[%clk 0:02:42.9]} 16. Re3 {[%clk 0:01:38.3]} 16... Bd5 {[%clk
0:02:43]} 17. Bd2 {[%clk 0:01:27.5]} 17... O-O {[%clk 0:02:42.4]} 18. a5 {[%clk
0:01:15.6]} 18... Qc7 {[%clk 0:02:34.4]} 19. Rc1 {[%clk 0:01:13.8]} 19... Qb7
{[%clk 0:02:34.7]} 20. Nc5 {[%clk 0:01:11.5]} 20... Bxc5 {[%clk 0:02:34.5]} 21.
Rxc5 {[%clk 0:01:11.3]} 21... Rac8 {[%clk 0:02:30.8]} 22. Rxc8 {[%clk
0:00:58.9]} 22... Rxc8 {[%clk 0:02:31.7]} 23. Rg3 {[%clk 0:00:58.1]} 23... Ne4
{[%clk 0:02:31.6]} 24. Rg4 {[%clk 0:00:32]} 24... f5 {[%clk 0:02:31.6]} 25. Rh4
{[%clk 0:00:24.7]} 25... Qe7 {[%clk 0:02:04.5]} 26. Rh3 {[%clk 0:00:19.5]} 26...
Qf6 {[%clk 0:01:57.8]} 27. Be3 {[%clk 0:00:18.4]} 27... f4 {[%clk 0:01:49]} 28.
Rf3 {[%clk 0:00:15.3]} 28... fxe3 {[%clk 0:01:47.6]} 29. Rxf6 {[%clk 0:00:14.6]}
29... Rc1+ {[%clk 0:01:48]} 30. Qf1 {[%clk 0:00:14.5]} 30... Rxf1+ {[%clk
0:01:48.2]} 31. Kxf1 {[%clk 0:00:14.5]} 0-1

[Event "Late-Titled-Tuesday-Blitz-October-10-2023"]
[Site "Chess.com"]
[Date "2023.10.10"]
[Round "7"]
[White "GHANDEEVAM2003"]
[Black "ameetghasi100"]
[Result "1-0"]
[WhiteElo "3036"]
[BlackElo "2734"]
[TimeControl "180+1"]
[EndTime "15:10:36 PDT"]
[Termination "GHANDEEVAM2003 won on time"]

1. c4 {[%clk 0:02:55.9]} 1... g6 {[%clk 0:02:59.6]} 2. g3 {[%clk 0:02:53.6]}
2... Bg7 {[%clk 0:03:00.5]} 3. Bg2 {[%clk 0:02:54.4]} 3... Nf6 {[%clk
0:03:01.4]} 4. Nf3 {[%clk 0:02:54.8]} 4... O-O {[%clk 0:03:02]} 5. O-O {[%clk
0:02:55.4]} 5... d6 {[%clk 0:03:02.6]} 6. b3 {[%clk 0:02:55.8]} 6... Nc6 {[%clk
0:03:02.5]} 7. Bb2 {[%clk 0:02:56.4]} 7... e5 {[%clk 0:03:03.1]} 8. d3 {[%clk
0:02:56.9]} 8... Bg4 {[%clk 0:03:01.6]} 9. Nc3 {[%clk 0:02:55.3]} 9... Qd7
{[%clk 0:03:01.6]} 10. a3 {[%clk 0:02:52.6]} 10... Rae8 {[%clk 0:02:54]} 11. b4
{[%clk 0:02:52.4]} 11... Bh3 {[%clk 0:02:53.5]} 12. e3 {[%clk 0:02:48.5]} 12...
Bxg2 {[%clk 0:02:44.2]} 13. Kxg2 {[%clk 0:02:49.4]} 13... d5 {[%clk 0:02:45]}
14. cxd5 {[%clk 0:02:46.1]} 14... Nxd5 {[%clk 0:02:45.9]} 15. Ne4 {[%clk
0:02:46.8]} 15... b6 {[%clk 0:02:41]} 16. Rc1 {[%clk 0:02:41.2]} 16... f5 {[%clk
0:02:21.5]} 17. Qb3 {[%clk 0:02:38.1]} 17... Kh8 {[%clk 0:02:17.9]} 18. Ned2
{[%clk 0:02:36.8]} 18... Re6 {[%clk 0:01:37.2]} 19. e4 {[%clk 0:02:30.5]} 19...
Nf6 {[%clk 0:01:27.5]} 20. exf5 {[%clk 0:02:15.1]} 20... gxf5 {[%clk 0:01:28.4]}
21. Nc4 {[%clk 0:02:10.2]} 21... Nd5 {[%clk 0:01:09.5]} 22. b5 {[%clk 0:02:04]}
22... Nd4 {[%clk 0:01:09.6]} 23. Ncxe5 {[%clk 0:01:54.8]} 23... Nxb3 {[%clk
0:00:18.9]} 24. Nxd7 {[%clk 0:01:55.1]} 24... Bxb2 {[%clk 0:00:12.1]} 25. Nxf8
{[%clk 0:01:54.9]} 25... Re2 {[%clk 0:00:04]} 26. Rce1 {[%clk 0:01:54.8]} 26...
Rc2 {[%clk 0:00:02]} 27. Ne6 {[%clk 0:01:47.8]} 27... Bxa3 {[%clk 0:00:01.4]}
28. Ned4 {[%clk 0:01:47.5]} 28... Nxd4 {[%clk 0:00:01.5]} 29. Nxd4 {[%clk
0:01:48.4]} 29... Rd2 {[%clk 0:00:02.4]} 30. Nxf5 {[%clk 0:01:48.9]} 30... Bc5
{[%clk 0:00:02.3]} 31. Re8+ {[%clk 0:01:48.8]} 1-0

[Event "Late-Titled-Tuesday-Blitz-October-10-2023"]
[Site "Chess.com"]
[Date "2023.10.10"]
[Round "7"]
[White "h4parah5"]
[Black "mishanick"]
[Result "0-1"]
[WhiteElo "2932"]
[BlackElo "3096"]
[TimeControl "180+1"]
[EndTime "15:10:47 PDT"]
[Termination "mishanick won by resignation"]

1. d4 {[%clk 0:03:00.9]} 1... Nf6 {[%clk 0:03:00]} 2. Nf3 {[%clk 0:03:01.3]}
2... d5 {[%clk 0:02:59.9]} 3. Bf4 {[%clk 0:03:00]} 3... c5 {[%clk 0:02:59.9]} 4.
e3 {[%clk 0:03:00.2]} 4... Nc6 {[%clk 0:03:00.6]} 5. Nbd2 {[%clk 0:03:00.5]}
5... Qb6 {[%clk 0:03:01.2]} 6. dxc5 {[%clk 0:02:59.2]} 6... Qxb2 {[%clk
0:03:01.9]} 7. c4 {[%clk 0:02:57.3]} 7... e6 {[%clk 0:02:59.5]} 8. Rb1 {[%clk
0:02:54]} 8... Qa3 {[%clk 0:02:59.6]} 9. cxd5 {[%clk 0:02:50]} 9... Nxd5 {[%clk
0:02:58]} 10. Be5 {[%clk 0:02:46.7]} 10... Nxe5 {[%clk 0:02:12.4]} 11. Nxe5
{[%clk 0:02:47.6]} 11... Bxc5 {[%clk 0:02:10.9]} 12. Bb5+ {[%clk 0:02:37.7]}
12... Ke7 {[%clk 0:02:10.8]} 13. Ndc4 {[%clk 0:02:27.9]} 13... Qc3+ {[%clk
0:01:48.9]} 14. Kf1 {[%clk 0:02:27.4]} 14... a6 {[%clk 0:01:39.2]} 15. Rb3
{[%clk 0:02:11]} 15... axb5 {[%clk 0:01:31.5]} 16. Rxc3 {[%clk 0:02:10.7]} 16...
Nxc3 {[%clk 0:01:32.4]} 17. Qh5 {[%clk 0:01:53.3]} 17... Rxa2 {[%clk 0:01:25.6]}
18. Qxf7+ {[%clk 0:01:27.6]} 18... Kd8 {[%clk 0:01:25.1]} 19. g3 {[%clk
0:01:21.1]} 19... Rf8 {[%clk 0:01:23.6]} 20. Qxg7 {[%clk 0:01:06.3]} 20...
Rfxf2+ {[%clk 0:01:22.9]} 21. Kg1 {[%clk 0:01:06.2]} 21... bxc4 {[%clk
0:00:44.7]} 22. Nf7+ {[%clk 0:01:00.4]} 22... Rxf7 {[%clk 0:00:37.2]} 23. Qxf7
{[%clk 0:00:56.3]} 23... Bxe3+ {[%clk 0:00:37]} 24. Kf1 {[%clk 0:00:56.4]} 24...
Rf2+ {[%clk 0:00:37.6]} 25. Qxf2 {[%clk 0:00:56.1]} 25... Bxf2 {[%clk
0:00:38.5]} 26. Kxf2 {[%clk 0:00:57]} 26... b5 {[%clk 0:00:37.7]} 27. g4 {[%clk
0:00:56.9]} 27... b4 {[%clk 0:00:37.3]} 28. Rc1 {[%clk 0:00:56.6]} 28... b3
{[%clk 0:00:35.1]} 0-1

[Event "Late-Titled-Tuesday-Blitz-October-10-2023"]
[Site "Chess.com"]
[Date "2023.10.10"]
[Round "7"]
[White "AsadliVugar"]
[Black "AlleyOoper"]
[Result "1-0"]
[WhiteElo "2866"]
[BlackElo "2592"]
[TimeControl "180+1"]
[EndTime "15:10:53 PDT"]
[Termination "AsadliVugar won by checkmate"]

1. e4 {[%clk 0:03:00.9]} 1... c6 {[%clk 0:02:59.5]} 2. Nf3 {[%clk 0:02:58.3]}
2... d5 {[%clk 0:03:00]} 3. e5 {[%clk 0:02:59]} 3... Bg4 {[%clk 0:02:59.6]} 4.
Be2 {[%clk 0:02:59.4]} 4... e6 {[%clk 0:02:59.9]} 5. O-O {[%clk 0:02:58.1]} 5...
Nd7 {[%clk 0:02:57]} 6. d4 {[%clk 0:02:56.7]} 6... Ne7 {[%clk 0:02:57]} 7. Nbd2
{[%clk 0:02:54.4]} 7... Nf5 {[%clk 0:02:56.9]} 8. h3 {[%clk 0:02:54.9]} 8...
Bxf3 {[%clk 0:02:54.1]} 9. Nxf3 {[%clk 0:02:55.8]} 9... c5 {[%clk 0:02:47.2]}
10. c3 {[%clk 0:02:55.8]} 10... Be7 {[%clk 0:02:46.6]} 11. Bd3 {[%clk
0:02:52.5]} 11... c4 {[%clk 0:02:43.7]} 12. Bc2 {[%clk 0:02:49.4]} 12... g6
{[%clk 0:02:40.6]} 13. g4 {[%clk 0:02:42.1]} 13... Nh4 {[%clk 0:02:40.4]} 14.
Nxh4 {[%clk 0:02:42.4]} 14... Bxh4 {[%clk 0:02:40.6]} 15. f4 {[%clk 0:02:43.2]}
15... Qb6 {[%clk 0:02:36.7]} 16. g5 {[%clk 0:02:37]} 16... h5 {[%clk 0:02:26.8]}
17. Kg2 {[%clk 0:02:36.1]} 17... Qc7 {[%clk 0:02:17.5]} 18. Rf3 {[%clk
0:02:35.6]} 18... Kf8 {[%clk 0:02:06.2]} 19. b3 {[%clk 0:02:35.2]} 19... Nb6
{[%clk 0:02:02.6]} 20. Ba3+ {[%clk 0:02:34.9]} 20... Kg7 {[%clk 0:02:02.7]} 21.
Bd6 {[%clk 0:02:34.9]} 21... Qd7 {[%clk 0:01:54.5]} 22. a4 {[%clk 0:02:30.6]}
22... cxb3 {[%clk 0:01:51.2]} 23. Bxb3 {[%clk 0:02:31.1]} 23... Rhc8 {[%clk
0:01:50.8]} 24. a5 {[%clk 0:02:30.7]} 24... Nc4 {[%clk 0:01:50.2]} 25. Bb4
{[%clk 0:02:29.1]} 25... Rc7 {[%clk 0:01:43.8]} 26. Qe2 {[%clk 0:02:21.4]} 26...
Rac8 {[%clk 0:01:42]} 27. Rff1 {[%clk 0:02:11]} 27... Qd8 {[%clk 0:01:40.3]} 28.
Kf3 {[%clk 0:02:10.4]} 28... Rc6 {[%clk 0:01:17.7]} 29. Rfb1 {[%clk 0:02:09.8]}
29... R6c7 {[%clk 0:01:09.9]} 30. Bc5 {[%clk 0:02:03.7]} 30... Rxc5 {[%clk
0:00:53.4]} 31. dxc5 {[%clk 0:02:03.9]} 31... Rxc5 {[%clk 0:00:53]} 32. Bxc4
{[%clk 0:01:59.1]} 32... Rxc4 {[%clk 0:00:53]} 33. Rxb7 {[%clk 0:02:00]} 33...
Bxg5 {[%clk 0:00:51.5]} 34. fxg5 {[%clk 0:01:53.6]} 34... Qxg5 {[%clk
0:00:49.5]} 35. Qe3 {[%clk 0:01:54]} 35... Qf5+ {[%clk 0:00:41.2]} 36. Kg2
{[%clk 0:01:54.1]} 36... Qc2+ {[%clk 0:00:37.8]} 37. Qf2 {[%clk 0:01:52.9]}
37... Qe4+ {[%clk 0:00:32.1]} 38. Kg1 {[%clk 0:01:52.6]} 38... Qxe5 {[%clk
0:00:23.5]} 39. Rxf7+ {[%clk 0:01:51.4]} 39... Kg8 {[%clk 0:00:21.2]} 40. Re1
{[%clk 0:01:46.4]} 40... Qg5+ {[%clk 0:00:19.5]} 41. Kh1 {[%clk 0:01:44.7]}
41... Rxc3 {[%clk 0:00:09.8]} 42. Rf8+ {[%clk 0:01:44.2]} 42... Kh7 {[%clk
0:00:10.3]} 43. Qf7+ {[%clk 0:01:45.1]} 43... Kh6 {[%clk 0:00:10.2]} 44. Rh8#
{[%clk 0:01:46]} 1-0

[Event "Late-Titled-Tuesday-Blitz-October-10-2023"]
[Site "Chess.com"]
[Date "2023.10.10"]
[Round "7"]
[White "Gravity_Chess"]
[Black "Baku_Boulevard"]
[Result "0-1"]
[WhiteElo "2884"]
[BlackElo "3041"]
[TimeControl "180+1"]
[EndTime "15:11:00 PDT"]
[Termination "Baku_Boulevard won by checkmate"]

1. Nf3 {[%clk 0:03:00.2]} 1... g6 {[%clk 0:02:57.8]} 2. g3 {[%clk 0:02:57.6]}
2... Bg7 {[%clk 0:02:57.6]} 3. Bg2 {[%clk 0:02:58.3]} 3... d6 {[%clk 0:02:57.3]}
4. d4 {[%clk 0:02:56.5]} 4... Nf6 {[%clk 0:02:57.1]} 5. O-O {[%clk 0:02:56.6]}
5... O-O {[%clk 0:02:56.9]} 6. c4 {[%clk 0:02:51.4]} 6... Nbd7 {[%clk
0:02:56.1]} 7. Nc3 {[%clk 0:02:51.7]} 7... e5 {[%clk 0:02:56.7]} 8. dxe5 {[%clk
0:02:52.2]} 8... dxe5 {[%clk 0:02:55.6]} 9. Qc2 {[%clk 0:02:43.6]} 9... c6
{[%clk 0:02:55.5]} 10. b3 {[%clk 0:02:39.8]} 10... Qe7 {[%clk 0:02:55.2]} 11.
Bb2 {[%clk 0:02:39]} 11... Re8 {[%clk 0:02:45.8]} 12. Nd2 {[%clk 0:02:37.3]}
12... Nf8 {[%clk 0:02:43.8]} 13. Rad1 {[%clk 0:02:30.8]} 13... h5 {[%clk
0:02:43.4]} 14. Nde4 {[%clk 0:02:27.6]} 14... Bf5 {[%clk 0:02:42.7]} 15. Qc1
{[%clk 0:02:27.7]} 15... Nxe4 {[%clk 0:02:35.1]} 16. Nxe4 {[%clk 0:02:28]} 16...
Bxe4 {[%clk 0:02:31.6]} 17. Bxe4 {[%clk 0:02:28.9]} 17... Ne6 {[%clk 0:02:31.5]}
18. Ba3 {[%clk 0:02:23.6]} 18... Qc7 {[%clk 0:02:31.5]} 19. e3 {[%clk
0:02:20.1]} 19... Rad8 {[%clk 0:02:30.2]} 20. Rxd8 {[%clk 0:02:19.7]} 20... Rxd8
{[%clk 0:02:30.5]} 21. Rd1 {[%clk 0:02:20]} 21... Rxd1+ {[%clk 0:02:28.5]} 22.
Qxd1 {[%clk 0:02:20.9]} 22... Qa5 {[%clk 0:02:28.6]} 23. Qc1 {[%clk 0:02:06.7]}
23... Bf8 {[%clk 0:02:25.5]} 24. Bxf8 {[%clk 0:01:57.2]} 24... Kxf8 {[%clk
0:02:26.4]} 25. Qb2 {[%clk 0:01:52]} 25... Ng5 {[%clk 0:02:25.8]} 26. b4 {[%clk
0:01:37.8]} 26... Qc7 {[%clk 0:02:20]} 27. Bg2 {[%clk 0:01:37.9]} 27... Qd6
{[%clk 0:02:19.7]} 28. f4 {[%clk 0:01:28.9]} 28... exf4 {[%clk 0:02:09]} 29.
gxf4 {[%clk 0:01:29.8]} 29... Ne6 {[%clk 0:02:06.5]} 30. Bh3 {[%clk 0:01:03.2]}
30... Qd3 {[%clk 0:01:57.7]} 31. Qh8+ {[%clk 0:00:25]} 31... Ke7 {[%clk
0:01:57]} 32. Qe5 {[%clk 0:00:25.6]} 32... Qxc4 {[%clk 0:01:56.8]} 33. Bxe6
{[%clk 0:00:24.4]} 33... Qxe6 {[%clk 0:01:55.7]} 34. Qc5+ {[%clk 0:00:23.1]}
34... Qd6 {[%clk 0:01:52.6]} 35. Qxa7 {[%clk 0:00:16.4]} 35... Qxb4 {[%clk
0:01:51.9]} 36. Kf2 {[%clk 0:00:16.9]} 36... h4 {[%clk 0:01:51.3]} 37. h3 {[%clk
0:00:15.2]} 37... c5 {[%clk 0:01:38.2]} 38. Qb8 {[%clk 0:00:14.4]} 38... Qd2+
{[%clk 0:01:30.7]} 39. Kf3 {[%clk 0:00:14.7]} 39... Qd5+ {[%clk 0:01:27.9]} 40.
Kg4 {[%clk 0:00:13.9]} 40... Qh5# {[%clk 0:01:25.9]} 0-1